Workbook

Sheet 1. Forside
A1: Stevns Spildevand A/S
D8: Bilag A
D13: Indholdsfortegnelse
C16: Fane nr. 2 | D16: Samlet prisloft
C17: Fane nr. 3 | D17: Driftsomkostninger
C18: Fane nr. 4 | D18: Historiske investeringer
C19: Fane nr. 5 | D19: Gennemførte investeringer
C20: Fane nr. 6 | D20: Korrektion investeringer
C21: Fane nr. 7 | D21: Planlagte investeringer
C22: Fane nr. 8 | D22: 1:1 omkostninger
C23: Fane nr. 9 | D23: Miljø- og servicemål
C24: Fane nr. 10 | D24: Klimatilpasning
C25: Fane nr. 11 | D25: Nettofinansielle poster
C26: Fane nr. 12 | D26: Over- eller underdækning
C27: Fane nr. 13 | D27: Kontrol med indtægtsrammen og oversigt over ekstraordinære effektiviseringsgevinster

Sheet 2. Samlet prisloft
A1: ='1. Forside'!A1 -> Stevns Spildevand A/S
B4: Fane 2. Samlet prisloft for 2015
B6: Driftsomkostninger
B7: Korrigerede driftsomkostninger i prisloftet for 2014 | C7: ='3. Driftsomkostninger'!C20 -> 17989370.52 | D7: kr.
B8: Bortfald af væsentlige omkostninger | C8: =-'3. Driftsomkostninger'!C25 -> 0 | D8: kr.
B9: Korrektion for periodevise driftsomkostninger | C9: ='3. Driftsomkostninger'!C31 -> -626597 | D9: kr.
B10: Korrektion for prisudviklingen 2014-2015 | C10: ='3. Driftsomkostninger'!C37 -> 13890.21882 | D10: kr.
B11: Forhøjelse til effektivt niveau iht. benchmarkingen | C11: ='3. Driftsomkostninger'!C43 -> 0 | D11: kr.
B12: Korrektion for generelt effektiviseringskrav | C12: =-'3. Driftsomkostninger'!C49 -> -68686.20669 | D12: kr.
B13: Korrektion for individuelt effektiviseringskrav | C13: =-'3. Driftsomkostninger'!C58 -> -416488.1767 | D13: kr.
B14: Tillæg i henhold til § 8, stk. 2, nr. 1 | C14: 1500000 | D14: kr.
B15: Driftsomkostninger i alt | C15: =SUM(C7:C14) -> 18391489.36 | D15: kr. | E15: =C15 -> 18391489.36 | F15: kr.
B16: Investeringer
B17: Tillæg for historiske investeringer | C17: ='4. Historiske investeringer'!C9 -> 27819531.5 | D17: kr.
B18: Tillæg for gennemførte investeringer i 2011-2013 | C18: ='5. Gennemførte investeringer'!F94 -> 3703619.471 | D18: kr.
B19: Korrektion af tillæg for planlagte investeringer vedrørende 2013 | C19: ='6. Korrektion investeringer'!C10 -> 77377.74527 | D19: kr.
B20: Tillæg for planlagte investeringer i 2014 og 2015 | C20: ='7. Planlagte investeringer'!F36 -> 1741666.667 | D20: kr.
B21: Investeringstillæg i alt | C21: =SUM(C17:C20) -> 33342195.38 | D21: kr. | E21: =C21 -> 33342195.38 | F21: kr.
B22: Øvrige omkostninger mv.
B23: Tillæg for 1:1 omkostninger i 2015 | C23: ='8. 1-1 omkostninger'!C11 -> 571000 | D23: kr.
B24: Tillæg vedr. revisorerklæringer og DANVA/FVD-kontingent | C24: ='8. 1-1 omkostninger'!C17 -> 62000 | D24: kr.
B25: Korrektion ift. faktiske 1:1 omkostninger i 2013 | C25: ='8. 1-1 omkostninger'!C23 -> -126505 | D25: kr.
B26: Tillæg for driftsomkostninger til miljø- og servicemål i 2015 | C26: ='9. Miljø- og servicemål'!C8 -> 36000 | D26: kr.
B27: Korrektion ift. faktiske driftsomkostninger til miljø- og servicemål i 2013 | C27: ='9. Miljø- og servicemål'!C14 -> -14040 | D27: kr.
B28: Tillæg for driftsomkostninger til medfinansiering af klimatilpasningsprojekter i 2015 | C28: ='10. Klimatilpasning'!C9 -> 0 | D28: kr.
B29: Korrektion ift. faktiske omkostninger til medfinansiering af klimatilpasningsprojekter i 2013 | C29: ='10. Klimatilpasning'!C15 -> 0 | D29: kr.
B30: Tillæg/fradrag for nettofinansielle poster i 2015 | C30: ='11. Nettofinansielle poster'!C9 -> 1160000 | D30: kr.
B31: Korrektion ift. faktiske nettofinansielle poster i 2013 | C31: ='11. Nettofinansielle poster'!C15 -> -2856359 | D31: kr.
B32: Øvrige omkostninger mv. i alt | C32: =SUM(C23:C31) -> -1167904 | D32: kr. | E32: =C32 -> -1167904 | F32: kr.
B33: Historisk over- eller underdækning
B34: Tillæg/fradrag for over- eller underdækning til og med 2010 | C34: ='12. Over- eller underdækning'!C11 -> 0 | D34: kr. | E34: =C34 -> 0 | F34: kr.
B35: Korrektion i forhold til tidligere indtægtsramme
B36: Korrektion for overholdelse af indtægtsramme i prisloft 2013 | C36: ='13. Kontrol med indtægtsrammen'!E27 -> 1108336.432 | D36: kr. | E36: =C36 -> 1108336.432 | F36: kr.
B37: Samlet prisloft
B38: Indtægtsramme i 2015 | E38: =SUM(E15:E36) -> 51674117.17 | F38: kr.
B39: Debiteret vandmængde i 2013 | E39: 828819 | F39: m3
B40: Prisloft 2015 | E40: =E38/E39 -> 62.34668507 | F40: kr./m3

Sheet 3. Driftsomkostninger
A1: ='1. Forside'!A1 -> Stevns Spildevand A/S
B4: Fane 3. Driftsomkostninger
B6: Driftsomkostningerne i prisloftet for 2014
B7: Korrigerede driftsomkostninger i prisloftet for 2013 (DOiPL 2013) | C7: 18499637 | D7: kr.
B8: inkl. tillæg iht. § 8, stk. 2, pkt. 1 på 827.192 kr.
B9: samt midlertidigt tillæg iht. § 8, stk. 5 på 1.752.272 kr.
B10: Prisfremskrivning 1,5 pct. | C10: =0.015*SUM(C7:C9) -> 277494.555 | D10: kr.
B11: Generelt effektiviseringskrav (0 pct.) | C11: 0 | D11: kr.
B12: Individuelt effektiviseringskrav | C12: -787762 | D12: kr.
B13: Driftsomkostningerne i prisloftet for 2014 (DOiPL 2014) | C13: =SUM(C7:C12) -> 17989369.55 | D13: kr.
B16: Forskel i § 8, stk. 2, pkt. 1 - tillæg
B17: Godkendt tillæg i PL2014 prisfremskrevet til 2014-niveau | C17: =827192*1.015 -> 839599.88 | D17: kr.
B18: Godkendt tillæg i PL2015 prisfremskrevet til 2014-niveau | C18: 839600.8453 | D18: kr.
B19: Forskel | C19: =C18-C17 -> 0.9652649999 | D19: kr.
B20: Korrigerede driftsomkostninger i prisloftet for 2014 | C20: =C13+C19 -> 17989370.52 | D20: kr.
B23: Korrektion for forventet bortfald af væsentlige omkostninger
B24: Selskabets indberettede bortfald af væsentlige omkostninger inden 2015 | C24: 0 | D24: kr.
B25: Korrektion for forventet bortfald | C25: =SUM(C24:C24) -> 0 | D25: kr.
B28: Korrektion for periodevise driftsomkostninger
B29: Del af godkendt tillæg i PL2013 vedrørende omkostninger i 2013 | C29: 1100000 | D29: kr.
B30: Faktisk udgift til periodevise driftsomkostninger i 2013 | C30: 473403 | D30: kr.
B31: Korrektion for periodevise driftsomkostninger | C31: =C30-C29 -> -626597 | D31: kr.
B34: Korrektion for prisudviklingen fra 2014-2015
B35: Driftsomkostningerne i prisloftet for 2014 | C35: =C20-C25+C31 -> 17362773.52 | D35: kr.
B36: Prisudvikling 2014 - 2015 | C36: 0.08 | D36: pct.
B37: Korrektion for prisudvikling | C37: =C35*(C36/100) -> 13890.21882 | D37: kr.
B40: Eventuel forhøjelse til effektivt niveau iht. benchmarkingen
B41: Selskabets effektive driftsomkostninger iht. benchmarkingen | C41: 11822186.37 | D41: kr.
B42: Selskabets pristalskorrigerede driftsomkostninger i 2015-niveau | C42: =C35+C37 -> 17376663.74 | D42: kr.
B43: Eventuel forhøjelse til effektivt niveau | C43: =IF(C42>C41,0,C41-C42) -> 0 | D43: kr.
B46: Korrektion for generelt effektiviseringskrav
B47: Driftsomkostningerne i prisloftet for 2014 ekskl. midlertidigt tillæg | C47: =C35-1752272 -> 15610501.52 | D47: kr.
B48: Generelt effektiviseringskrav | C48: 0.44 | D48: pct.
B49: Endeligt generelt effektiviseringskrav | C49: =C47*(C48/100) -> 68686.20669 | D49: kr.
B52: Korrektion for individuelt effektiviseringskrav
B53: Rå effektiviseringspotentiale | C53: 3906962.989 | D53: kr.
B54: Effektiviseringspotentiale efter eventuel korrektion for særlige forhold | C54: 3762029.779 | D54: kr.
B55: Effektiviseringspotentiale efter forsigtighedshensyn | C55: 1665952.707 | D55: kr.
B56: Effektiviseringspotentiale efter eventuel korrektion for sammensætning af signifikante costdrivere | C56: 1665952.707 | D56: kr.
B57: Umiddelbart effektiviseringskrav | C57: =C56/4 -> 416488.1767 | D57: kr.
B58: Endeligt individuelt effektiviseringskrav | C58: =IF(C57>0.05*C35,0.05*C35,IF(C57<0.01*C35,0,C57)) -> 416488.1767 | D58: kr.

Sheet 4. Historiske investeringer
A1: ='3. Driftsomkostninger'!A1 -> Stevns Spildevand A/S
B4: Fane 4. Historiske investeringer
B6: Tillæg for historiske investeringer
B7: Værdi af selskabets materielle anlægsaktiver pr. 1. januar 2010 | C7: 1187899485 | D7: kr.
B8: Den årlige standardafskrivning på de materielle anlægsaktiver iht. POLKA | C8: 27819531.5 | D8: kr.
B9: Tillæg i alt i 2015 | C9: =C8 -> 27819531.5 | D9: kr.

Sheet 5. Gennemførte investeringer
A1: ='4. Historiske investeringer'!A1 -> Stevns Spildevand A/S
B4: Fane 5. Gennemførte investeringer i 2010 - 2013
B6: Tillæg for gennemførte investeringer i 2013
B7: Beskrivelse af investeringen | C7: Årstal | D7: Std. levetid (år) | E7: Anskaffelses-pris (kr.) | F7: Afskrivning
B8: Ledningsnet = Ø 200 mm | C8: 2013 | D8: 75 | E8: 8020419 | F8: =E8/D8 -> 106938.92 | G8: kr.
B9: Ø 200 mm < Ledningsnet = Ø 500 mm | C9: 2013 | D9: 75 | E9: 4252089 | F9: 56694.52 | G9: kr.
B10: Ø 500 mm < Ledningsnet = Ø 800 mm | C10: 2013 | D10: 75 | E10: 3830328 | F10: 51071.04 | G10: kr.
B11: Ø 800 mm < Ledningsnet = Ø 1000 mm | C11: 2013 | D11: 75 | E11: 3928502 | F11: 52380.02667 | G11: kr.
B12: Ø 1000 mm < Ledningsnet = Ø 1200 mm | C12: 2013 | D12: 75 | E12: 5209706 | F12: 69462.74667 | G12: kr.
B13: Strømpeforing Ø 200 mm < Ledningsnet = Ø 500 mm | C13: 2013 | D13: 50 | E13: 352199 | F13: 7043.98 | G13: kr.
B14: Brønde | C14: 2013 | D14: 75 | E14: 1365632 | F14: 18208.42667 | G14: kr.
B15: Stik | C15: 2013 | D15: 75 | E15: 2669844 | F15: 35597.92 | G15: kr.
B16: Tryksatte minipumpestationer (husstandssystemer) | C16: 2013 | D16: 30 | E16: 6886663 | F16: 229555.4333 | G16: kr.
B17: Pumpestationer i brønde (< 6,25 m2), Konstruktioner | C17: 2013 | D17: 50 | E17: 1590141 | F17: 31802.82 | G17: kr.
B18: Pumpestationer i brønde (< 6,25 m2), Mek/EL | C18: 2013 | D18: 20 | E18: 799859 | F18: 39992.95 | G18: kr.
B19: Pumpestationer i brønde (< 6,25 m2), SRO | C19: 2013 | D19: 10 | E19: 351836 | F19: 35183.6 | G19: kr.
B20: Pumpestationer m. overbygning (< 20 m2), Konstruktioner | C20: 2013 | D20: 50 | E20: 5002 | F20: 100.04 | G20: kr.
B21: Forsinkelsesbassiner, lukkede uden automatisk rensning og SRO Miljøklasse B (mindre end 1.000 m3) | C21: 2013 | D21: 50 | E21: 253666 | F21: 5073.32 | G21: kr.
B22: Jordbassin Klasse A | C22: 2013 | D22: 50 | E22: 4029456 | F22: 80589.12 | G22: kr.
B23: Tryksatte minipumpestationer (husstandssystemer) | C23: 2013 | D23: 30 | E23: 9550 | F23: 318.3333333 | G23: kr.
B24: Brønde | C24: 2013 | D24: 75 | E24: 175854 | F24: 2344.72 | G24: kr.
B25: Ø 500 mm < Ledningsnet = Ø 800 mm | C25: 2013 | D25: 75 | E25: 8749 | F25: 116.6533333 | G25: kr.
B26: Efterklaringstanke, Konstruktioner | C26: 2013 | D26: 60 | E26: 52180 | F26: 869.6666667 | G26: kr.
B27: Slutafvanding, slam - højteknologisk (centrifuger), Konstruktioner | C27: 2013 | D27: 60 | E27: 11322 | F27: 188.7 | G27: kr.
B28: Installationer "mekaniske riste og SRO" Miljøklasse A. (7-20 m2) - Mek/EL | C28: 2013 | D28: 20 | E28: 20908 | F28: 1045.4 | G28: kr.
B29: Installationer "mekaniske riste og SRO" Miljøklasse A. (7-20 m2) - SRO | C29: 2013 | D29: 10 | E29: 5250 | F29: 525 | G29: kr.
B30: Beluftningstanke, Konstruktioner | C30: 2013 | D30: 60 | E30: 144418 | F30: 2406.966667 | G30: kr.
B31: Forklaring, SRO | C31: 2013 | D31: 10 | E31: 120969 | F31: 12096.9 | G31: kr.
B32: Forafvanding, slam, Konstruktion | C32: 2013 | D32: 60 | E32: 837809 | F32: 13963.48333 | G32: kr.
B33: Forafvanding, slam, Mek/EL | C33: 2013 | D33: 20 | E33: 83069 | F33: 4153.45 | G33: kr.
B34: Beluftningstanke, Mek/EL | C34: 2013 | D34: 20 | E34: 102125 | F34: 5106.25 | G34: kr.
B35: Beluftningstanke, Konstruktioner | C35: 2013 | D35: 60 | E35: 56550 | F35: 942.5 | G35: kr.
B36: Beluftningstanke, Mek/EL | C36: 2013 | D36: 20 | E36: 40432 | F36: 2021.6 | G36: kr.
B37: Beluftningstanke, SRO | C37: 2013 | D37: 10 | E37: 195853 | F37: 19585.3 | G37: kr.
B38: Køretøjer, personbil | C38: 2013 | D38: 5 | E38: 9150 | F38: 1830 | G38: kr.
B39: Køretøjer, små lastvogne (< 3.500 kg.) | C39: 2013 | D39: 5 | E39: 187766 | F39: 37553.2 | G39: kr.
B40: Forafvanding, slam, Konstruktion | C40: 2013 | D40: 25 | E40: 254065 | F40: 10162.6 | G40: kr.
B41: Forafvanding, slam, Mek/EL | C41: 2013 | D41: 25 | E41: 45520 | F41: 1820.8 | G41: kr.
B42: Pumpestationer i brønde (< 6,25 m2), SRO | C42: 2013 | D42: 10 | E42: 68032 | F42: 6803.2 | G42: kr.
B43: Pumpestationer i brønde (< 6,25 m2), Mek/EL | C43: 2013 | D43: 20 | E43: 24284 | F43: 1214.2 | G43: kr.
B44: Pumpestationer i brønde (< 6,25 m2), Mek/EL | C44: 2013 | D44: 20 | E44: 1839 | F44: 91.95 | G44: kr.
B45: Pumpestationer i brønde (< 6,25 m2), SRO | C45: 2013 | D45: 10 | E45: 65402 | F45: 6540.2 | G45: kr.
B46: Pumpestationer i brønde (< 6,25 m2), Konstruktioner | C46: 2013 | D46: 50 | E46: 3498 | F46: 69.96 | G46: kr.
B47: Pumpestationer i brønde (< 6,25 m2), Mek/EL | C47: 2013 | D47: 20 | E47: 170830 | F47: 8541.5 | G47: kr.
B48: Pumpestationer i brønde (< 6,25 m2), SRO | C48: 2013 | D48: 10 | E48: 73368 | F48: 7336.8 | G48: kr.
B49: Pumpestationer m. overbygning (< 20 m2), Konstruktioner | C49: 2013 | D49: 50 | E49: 6727 | F49: 134.54 | G49: kr.
B50: Pumpestationer m. overbygning (< 20 m2), Mek/EL | C50: 2013 | D50: 20 | E50: 42299 | F50: 2114.95 | G50: kr.
B51: Pumpestationer m. overbygning (< 20 m2), SRO | C51: 2013 | D51: 10 | E51: 15869 | F51: 1586.9 | G51: kr.
B52: Pumpestationer m. overbygning (< 20 m2), Konstruktioner | C52: 2013 | D52: 50 | E52: 5306 | F52: 106.12 | G52: kr.
B53: Pumpestationer m. overbygning (< 20 m2), Mek/EL | C53: 2013 | D53: 20 | E53: 41728 | F53: 2086.4 | G53: kr.
B54: Pumpestationer m. overbygning (< 20 m2), SRO | C54: 2013 | D54: 10 | E54: 3072 | F54: 307.2 | G54: kr.
B55: Pumpestationer m. overbygning (< 20 m2), Mek/EL | C55: 2013 | D55: 20 | E55: 40100 | F55: 2005 | G55: kr.
B56: Pumpestationer m. overbygning (< 20 m2), SRO | C56: 2013 | D56: 10 | E56: 3072 | F56: 307.2 | G56: kr.
B57: Pumpestationer m. overbygning (< 20 m2), Konstruktioner | C57: 2013 | D57: 50 | E57: 6004 | F57: 120.08 | G57: kr.
B58: Pumpestationer m. overbygning (< 20 m2), Mek/EL | C58: 2013 | D58: 20 | E58: 149264 | F58: 7463.2 | G58: kr.
B59: Pumpestationer m. overbygning (< 20 m2), SRO | C59: 2013 | D59: 10 | E59: 78767 | F59: 7876.7 | G59: kr.
B60: Pumpestationer i brønde (< 6,25 m2), Konstruktioner | C60: 2013 | D60: 50 | E60: 60727 | F60: 1214.54 | G60: kr.
B61: Pumpestationer i brønde (< 6,25 m2), Mek/EL | C61: 2013 | D61: 20 | E61: 134011 | F61: 6700.55 | G61: kr.
B62: Pumpestationer i brønde (< 6,25 m2), SRO | C62: 2013 | D62: 10 | E62: 68499 | F62: 6849.9 | G62: kr.
B63: Pumpestationer i brønde (< 6,25 m2), Konstruktioner | C63: 2013 | D63: 50 | E63: 7325 | F63: 146.5 | G63: kr.
B64: Pumpestationer i underjordiske bygværker ( | C64: 2013 | D64: 20 | E64: 340701 | F64: 17035.05 | G64: kr.
B65: Pumpestationer i underjordiske bygværker ( | C65: 2013 | D65: 10 | E65: 126667 | F65: 12666.7 | G65: kr.
B66: Pumpestationer i brønde (< 6,25 m2), Mek/EL | C66: 2013 | D66: 20 | E66: 64434 | F66: 3221.7 | G66: kr.
B67: Pumpestationer i brønde (< 6,25 m2), SRO | C67: 2013 | D67: 10 | E67: 25504 | F67: 2550.4 | G67: kr.
B68: Pumpestationer m. overbygning (< 20 m2), Mek/EL | C68: 2013 | D68: 20 | E68: 9275 | F68: 463.75 | G68: kr.
B69: Pumpestationer m. overbygning (< 20 m2), SRO | C69: 2013 | D69: 10 | E69: 10119 | F69: 1011.9 | G69: kr.
B70: Pumpestationer i brønde (< 6,25 m2), Mek/EL | C70: 2013 | D70: 20 | E70: 63412 | F70: 3170.6 | G70: kr.
B71: Pumpestationer i brønde (< 6,25 m2), SRO | C71: 2013 | D71: 10 | E71: 25504 | F71: 2550.4 | G71: kr.
B72: Pumpestationer i brønde (< 6,25 m2), Konstruktioner | C72: 2013 | D72: 50 | E72: 2850 | F72: 57 | G72: kr.
B73: Pumpestationer i brønde (< 6,25 m2), Mek/EL | C73: 2013 | D73: 20 | E73: 63412 | F73: 3170.6 | G73: kr.
B74: Pumpestationer i brønde (< 6,25 m2), SRO | C74: 2013 | D74: 10 | E74: 25504 | F74: 2550.4 | G74: kr.
B75: Pumpestationer i brønde (< 6,25 m2), Konstruktioner | C75: 2013 | D75: 50 | E75: 9019 | F75: 180.38 | G75: kr.
B76: Pumpestationer i brønde (< 6,25 m2), Mek/EL | C76: 2013 | D76: 20 | E76: 76232 | F76: 3811.6 | G76: kr.
B77: Pumpestationer i brønde (< 6,25 m2), SRO | C77: 2013 | D77: 10 | E77: 25504 | F77: 2550.4 | G77: kr.
B78: Pumpestationer m. overbygning (< 20 m2), Mek/EL | C78: 2013 | D78: 20 | E78: 92330 | F78: 4616.5 | G78: kr.
B79: Pumpestationer m. overbygning (< 20 m2), SRO | C79: 2013 | D79: 10 | E79: 5162 | F79: 516.2 | G79: kr.
B80: Pumpestationer i underjordiske bygværker ( | C80: 2013 | D80: 20 | E80: 9384 | F80: 469.2 | G80: kr.
B81: Pumpestationer i brønde (< 6,25 m2), Mek/EL | C81: 2013 | D81: 20 | E81: 53586 | F81: 2679.3 | G81: kr.
B82: Pumpestationer m. overbygning (< 20 m2), SRO | C82: 2013 | D82: 10 | E82: 10119 | F82: 1011.9 | G82: kr.
B83: Pumpestationer m. overbygning (< 20 m2), Konstruktioner | C83: 2013 | D83: 50 | E83: 11274 | F83: 225.48 | G83: kr.
B84: Pumpestationer m. overbygning (< 20 m2), Mek/EL | C84: 2013 | D84: 20 | E84: 45533 | F84: 2276.65 | G84: kr.
B85: Pumpestationer m. overbygning (< 20 m2), Mek/EL | C85: 2013 | D85: 20 | E85: 26917 | F85: 1345.85 | G85: kr.
B86: Pumpestationer m. overbygning (< 20 m2), Konstruktioner | C86: 2013 | D86: 50 | E86: 11274 | F86: 225.48 | G86: kr.
B87: Pumpestationer i brønde (< 6,25 m2), Mek/EL | C87: 2013 | D87: 20 | E87: 8639 | F87: 431.95 | G87: kr.
B88: Glasfibertank | C88: 2013 | D88: 20 | E88: 23125 | F88: =E88/D88 -> 1156.25 | G88: kr.
B89: Geotube, konstruktion | C89: 2013 | D89: 67 | E89: 22164 | F89: 330.8059701 | G89: kr.
B90: Nødbrusere | C90: 2013 | D90: 20 | E90: 16059 | F90: 802.95 | G90: kr.
B91: Oversvømmelseskort | C91: 2013 | D91: 5 | E91: 570985 | F91: 114197 | G91: kr.
B92: Tillæg for 2013 | F92: =SUM(F8:F91) -> 1191640.373 | G92: kr.
B93: Tillæg for 2010 - 2012 | F93: 2511979.098 | G93: kr.
B94: Samlet tillæg for gennemførte investeringer | F94: =F92+F93 -> 3703619.471 | G94: kr.

Sheet 6. Korrektion investeringer
A1: ='5. Gennemførte investeringer'!A1 -> Stevns Spildevand A/S
B4: Fane 6. Korrektion af tillæg for planlagte investeringer
B6: Korrektion af tillæg for planlagte investeringer vedr. 2013
B7: Tillæg for planlagte investeringer i 2013 i prisloft 2013 | C7: 864796 | D7: kr.
B8: Tillæg for planlagte investeringer i 2013 i prisloft 2014 | C8: 1441107 | D8: kr.
B9: Selskabets faktiske afskrivninger på gennemførte investeringer i 2013 | C9: ='5. Gennemførte investeringer'!F92 -> 1191640.373 | D9: kr.
B10: Korrektion af tillæg for planlagte investeringer vedr. 2013 | C10: =C9-C7+C9-C8 -> 77377.74527 | D10: kr.

Sheet 7. Planlagte investeringer
A1: ='6. Korrektion investeringer'!A1 -> Stevns Spildevand A/S
B4: Fane 7. Planlagte investeringer
B6: Tillæg for planlagte investeringer i 2014 og 2015
B7: Beskrivelse af investeringen | C7: Årstal | D7: Std. levetid (år) | E7: Anskaffelses-pris (kr.) | F7: Afskrivning
B8: Ledningsnet = Ø 200 mm | C8: 2014 | D8: 75 | E8: 34170000 | F8: =E8/D8 -> 455600 | G8: kr.
B9: Strømpeforing = Ø 200 mm | C9: 2014 | D9: 50 | E9: 352000 | F9: =E9/D9 -> 7040 | G9: kr.
B10: Tryksatte minipumpestationer (husstandssystemer) | C10: 2014 | D10: 30 | E10: 2065000 | F10: 68833.33333 | G10: kr.
B11: Jordbassin Klasse A | C11: 2014 | D11: 50 | E11: 14621000 | F11: 292420 | G11: kr.
B12: Indløb-/udløbsarrangement | C12: 2014 | D12: 75 | E12: 1624000 | F12: 21653.33333 | G12: kr.
B13: Pumpestationer i brønde (< 6,25 m2), Konstruktioner | C13: 2014 | D13: 50 | E13: 256000 | F13: 5120 | G13: kr.
B14: Pumpestationer i brønde (< 6,25 m2), Mek/EL | C14: 2014 | D14: 20 | E14: 511000 | F14: 25550 | G14: kr.
B15: Pumpestationer i brønde (< 6,25 m2), SRO | C15: 2014 | D15: 10 | E15: 256000 | F15: 25600 | G15: kr.
B16: Indløb med riste, Konstruktioner | C16: 2014 | D16: 60 | E16: 855000 | F16: 14250 | G16: kr.
B17: Indløb med riste, Mek/EL | C17: 2014 | D17: 20 | E17: 67000 | F17: 3350 | G17: kr.
B18: Indløb med riste, SRO | C18: 2014 | D18: 10 | E18: 29000 | F18: 2900 | G18: kr.
B19: Køretøjer, entreprenørmaskiner | C19: 2014 | D19: 5 | E19: 140000 | F19: 28000 | G19: kr.
B20: Beluftningstanke, SRO | C20: 2014 | D20: 10 | E20: 182000 | F20: 18200 | G20: kr.
B21: Beluftningstanke, Konstruktioner | C21: 2014 | D21: 60 | E21: 345000 | F21: 5750 | G21: kr.
B22: Beluftningstanke, Mek/EL | C22: 2014 | D22: 20 | E22: 345000 | F22: 17250 | G22: kr.
B23: Ledningsnet = Ø 200 mm | C23: 2015 | D23: 75 | E23: 20512000 | F23: 273493.3333 | G23: kr.
B24: Strømpeforing = Ø 200 mm | C24: 2015 | D24: 50 | E24: 290000 | F24: 5800 | G24: kr.
B25: Tryksatte minipumpestationer (husstandssystemer) | C25: 2015 | D25: 30 | E25: 6612000 | F25: 220400 | G25: kr.
B26: Jordbassin Klasse A | C26: 2015 | D26: 50 | E26: 7062000 | F26: 141240 | G26: kr.
B27: Indløb-/udløbsarrangement | C27: 2015 | D27: 75 | E27: 784000 | F27: 10453.33333 | G27: kr.
B28: Pumpestationer i brønde (< 6,25 m2), Konstruktioner | C28: 2015 | D28: 50 | E28: 259000 | F28: 5180 | G28: kr.
B29: Pumpestationer i brønde (< 6,25 m2), Mek/EL | C29: 2015 | D29: 20 | E29: 519000 | F29: 25950 | G29: kr.
B30: Pumpestationer i brønde (< 6,25 m2), SRO | C30: 2015 | D30: 10 | E30: 259000 | F30: 25900 | G30: kr.
B31: Beluftningstanke, SRO | C31: 2015 | D31: 10 | E31: 184000 | F31: 18400 | G31: kr.
B32: Beluftningstanke, Konstruktioner | C32: 2015 | D32: 60 | E32: 350000 | F32: 5833.333333 | G32: kr.
B33: Beluftningstanke, Mek/EL | C33: 2015 | D33: 20 | E33: 350000 | F33: 17500 | G33: kr.
B34: Tillæg for 2014 | F34: =SUMIF(C8:C33,"2014",F8:F33) -> 991516.6667 | G34: kr.
B35: Tillæg for 2015 | F35: =SUMIF(C8:C33,"2015",F8:F33) -> 750150 | G35: kr.
B36: Tillæg i alt | F36: =F34+F35 -> 1741666.667 | G36: kr.

Sheet 8. 1-1 omkostninger
A1: ='7. Planlagte investeringer'!A1 -> Stevns Spildevand A/S
B4: Fane 8. 1:1 omkostninger
B6: Tillæg for budgetterede 1:1 omkostninger i 2015
B7: Betaling til Forsyningssekretariatet | C7: 33000 | D7: kr.
B8: Spildevandsafgift | C8: 400000 | D8: kr.
B9: Køb af varer og tjenesteydelser hos et andet prisloftreguleret vandselskab | C9: 28000 | D9: kr.
B10: Ejendomsskatter | C10: 110000 | D10: kr.
B11: Tillæg i alt | C11: =SUM(C7:C10) -> 571000 | D11: kr.
B14: Tillæg for budgetterede nødvendige udgifter til revisorerklæringer samt ordinært medlemskab af DANVA og FVD i 2015
B15: Betaling for ordinært medlemskab af DANVA/FVD | C15: 38000 | D15: kr.
B16: Betaling for revisorerklæringer | C16: 24000 | D16: kr.
B17: Tillæg i alt | C17: =SUM(C15:C16) -> 62000 | D17: kr.
B20: Korrektion af tillæg for faktiske 1:1 omkostninger (inkl. revisorerklæringer og ordinært medlemskab af DANVA/FVD) i 2013
B21: Selskabets faktiske 1:1 omkostninger mv. i 2013, jf. reguleringsregnskabet | C21: 546495 | D21: kr.
B22: Tillæg for budgetterede 1:1 omkostninger mv. i prisloft 2013 | C22: 673000 | D22: kr.
B23: Korrektion af tillæg for budgetterede 1:1 omkostninger mv. i 2013 | C23: =C21-C22 -> -126505 | D23: kr.

Sheet 9. Miljø- og servicemål
A1: ='8. 1-1 omkostninger'!A1 -> Stevns Spildevand A/S
B4: Fane 9. Driftsomkostninger til miljø- og servicemål
B6: Tillæg for budgetterede driftsomkostninger til miljø- og servicemål i 2015
B7: Badevandskvalitet | C7: 36000 | D7: kr.
B8: Tillæg i alt | C8: =SUM(C7:C7) -> 36000 | D8: kr.
B11: Korrektion af tillæg for faktiske driftsomkostninger til miljø- og servicemål i 2013
B12: Selskabets faktiske driftsomkostninger til miljø- og servicemål i 2013, jf. reguleringsregnskabet | C12: 35160 | D12: kr.
B13: Tillæg for budgetterede driftsomkostninger til miljø- og servicemål i prisloft 2013 | C13: 49200 | D13: kr.
B14: Korrektion af tillæg for budgetterede driftsomkostninger til miljø- og servicemål i 2013 | C14: =C12-C13 -> -14040 | D14: kr.
E74: 0

Sheet 10. Klimatilpasning
A1: ='9. Miljø- og servicemål'!A1 -> Stevns Spildevand A/S
B4: Fane 10. Medfinansiering af klimatilpasningsprojekter
B7: Tillæg for budgetterede omkostninger til medfinansiering af klimatilpasningsprojekter i 2015
C8: 0 | D8: kr.
B9: Tillæg i alt | C9: =SUM(C8:C8) -> 0 | D9: kr.
B12: Korrektion af tillæg for faktiske omkostninger til medfinansiering af klimatilpasningsprojekter i 2013
B13: Selskabets faktiske driftsomkostninger til klimatilpasningsprojekter i 2013, jf. reguleringsregnskabet | C13: 0 | D13: kr.
B14: Tillæg for budgetterede driftsomkostninger til klimatilpasningsprojekter i prisloft 2013 | C14: 0 | D14: kr.
B15: Korrektion af tillæg for budgetterede omkostninger til klimatilpasningsprojekter i 2013 | C15: =C13-C14 -> 0 | D15: kr.

Sheet 11. Nettofinansielle poster
A1: ='10. Klimatilpasning'!A1 -> Stevns Spildevand A/S
B4: Fane 11. Nettofinansielle poster
B6: Tillæg for budgetterede nettofinansielle poster i 2015
B7: Budgetterede renteudgifter og gebyrer i 2015 | C7: 1260000 | D7: kr.
B8: Budgetterede renteindtægter i 2015 | C8: 100000 | D8: kr.
B9: Tillæg/fradrag i alt | C9: =C7-C8 -> 1160000 | D9: kr.
B12: Korrektion af tillæg for faktiske nettofinansielle poster i 2013
B13: Selskabets faktiske nettofinansielle poster i 2013, jf. reguleringsregnskabet | C13: -559359 | D13: kr.
B14: Tillæg for budgetterede nettofinansielle poster i prisloft 2013 | C14: 2297000 | D14: kr.
B15: Korrektion af tillæg for budgetterede nettofinansielle poster i 2013 | C15: =C13-C14 -> -2856359 | D15: kr.

Sheet 12. Over- eller underdækning (hidden)
A1: ='11. Nettofinansielle poster'!A1 -> Stevns Spildevand A/S
B4: Fane 12. Over- eller underdækning til og med 2010
B6: Tillæg/fradrag for over- eller underdækning til og med 2010
B7: Opgjort over- eller underdækning per 31. december 2010 | D7: kr.
B8: Heraf beløb indregnet i prislofterne for 2012 - 2014 | D8: kr.
B9: Endnu ikke indregnet over- eller underdækning | C9: =C7-C8 -> 0 | D9: kr.
B10: Resterende indregningsperiode (fastsat i prisloftet for 2012) | D10: år
B11: Tillæg/fradrag i alt | C11: =IF(C7=0,0,C9/C10) -> 0 | D11: kr.

Sheet 13. Kontrol med indtægtsrammen
A1: ='12. Over- eller underdækning'!A1 -> Stevns Spildevand A/S
B4: Fane 13. Korrektion for overholdelse af indtægtsrammen i prisloftet for 2013
B6: Samlet opgørelse vedrørende overholdelse af indtægtsrammen i prisloftet for 2013
B7: Indtægtsramme i prisloftet for 2013 | E7: 53092217.88 | F7: kr.
B8: Ikke anvendt likviditet vedrørende investeringer i 2013
B9: Tillæg for historiske investeringer | C9: 28297274.45 | D9: kr.
B10: Tillæg for gennemførte investeringer i 2011 | C10: 1732907 | D10: kr.
B11: Korrektion af tillæg for planlagte investeringer i 2011 | C11: -798419 | D11: kr.
B12: Tillæg for planlagte investeringer i 2012 og 2013 | C12: 2121970 | D12: kr.
B13: Indtægter fra tilslutningsbidrag | C13: 1997796 | D13: kr.
B14: Indtægter fra salg af anlægsaktiver | C14: 2052 | D14: kr.
B15: Erstatninger vedr. anlægsaktiver mv. | C15: 0 | D15: kr.
B16: Ekstraordinær effektiviseringsgevinst anvendt til investeringer | C16: 3969570 | D16: kr.
B17: Udgifter til investeringer | C17: -35247962 | D17: kr.
B18: Ikke anvendt likviditet vedr. investeringer i alt | C18: =SUM(C9:C17) -> 2075188.447 | D18: kr. | E18: =IF(C18<0,0,-C18) -> -2075188.447 | F18: kr.
B19: Ekstraordinære effektiviseringsgevinster anvendt til takstnedsættelse
B20: Ekstraordinær effektiviseringsgevinst anvendt til takstnedsættelse | C20: 0 | D20: kr. | E20: =-C20 -> 0 | F20: kr.
B21: Korrektion af ikke opkrævet tillæg fra 2011 i prisloft 2013
B22: Korrektion af ikke opkrævet tillæg fra 2011 i prisloft 2013 | C22: 0 | D22: kr. | E22: =-C22 -> 0 | F22: kr.
B23: Indtægter fra primære aktiviteter mv.
B24: Indtægter fra kubikmetertakster, faste takster, særbidrag, målergebyrer samt andre takster og gebyrer | C24: 49908693 | D24: kr.
B25: Andre indtægter i prisloftåret, som selskabet har opnået i forbindelse med eller som følge af selskabets primære aktiviteter | C25: 0 | D25: kr.
B26: Indtægter fra primære aktiviteter mv. i alt | C26: =SUM(C24:C25) -> 49908693 | D26: kr. | E26: =-C26 -> -49908693 | F26: kr.
B27: Tillæg/fradrag i prisloftet for 2015 i alt | E27: =E7+E18+E20+E22+E26 -> 1108336.432 | F27: kr.
B31: Oversigt over ekstraordinære effektiviseringsgevinster
C33: 2012 | E33: 2013 | G33: 2014 | I33: 2015 | K33: 2016
B34: Indhentet ekstraordinær effektiviseringsgevinst | C34: 741199 | D34: kr. | E34: 3228371 | F34: kr. | H34: kr. | J34: kr. | L34: kr.
B35: Gevinst anvendt til investeringer | C35: 0 | D35: kr. | E35: 3969570 | F35: kr. | H35: kr. | J35: kr. | L35: kr.
B36: Gevinst anvendt til takstnedsættelse | C36: 0 | D36: kr. | E36: 0 | F36: kr. | H36: kr. | J36: kr. | L36: kr.
B37: Korrektion for effektiviseringsgevinst der ikke er anvendt inden 4 år | C37: 0 | D37: kr. | E37: 0 | F37: kr. | H37: kr. | J37: kr. | K37: =IF(C38>SUM(E35:I36),C38-SUM(E35:I36),0)*-1 -> 0 | L37: kr.
B38: Resterende gevinst | C38: =C34-C35-C36 -> 741199 | D38: kr. | E38: =C38+E34-E35-E36 -> 0 | F38: kr. | G38: =E38+G34-G35-G36 -> 0 | H38: kr. | I38: =G38+I34-I35-I36 -> 0 | J38: kr. | K38: =K34-K35-K36+K37+I38 -> 0 | L38: kr.

Sheet Ark1
